[Event "*** Titled Tuesday Blitz"]
[Site "Chess.com"]
[Date "2020.04.14"]
[Round "9"]
[White "PIwan"]
[Black "RestartingChess"]
[Result "1-0"]
[WhiteElo "2549"]
[BlackElo "2382"]
[TimeControl "180+1"]
[EndTime "11:43:20 PDT"]
[Termination "PIwan won by resignation"]

1. c4 {[%clk 0:03:00.9]} 1... Nf6 {[%clk 0:03:00.1]} 2. Nc3 {[%clk 0:03:01.1]}
2... g6 {[%clk 0:03:00.6]} 3. e4 {[%clk 0:03:01.6]} 3... d6 {[%clk 0:03:00.2]}
4. d4 {[%clk 0:03:01.9]} 4... Bg7 {[%clk 0:03:00.7]} 5. f3 {[%clk 0:03:02.5]}
5... O-O {[%clk 0:03:01.2]} 6. Bg5 {[%clk 0:03:02.9]} 6... c5 {[%clk 0:03:01.4]}
7. d5 {[%clk 0:03:03.1]} 7... Nbd7 {[%clk 0:03:01.4]} 8. Qd2 {[%clk 0:03:02.7]}
8... a6 {[%clk 0:02:59.2]} 9. Nge2 {[%clk 0:03:02.4]} 9... Rb8 {[%clk
0:02:58.6]} 10. Ng3 {[%clk 0:02:57.1]} 10... h5 {[%clk 0:02:51.4]} 11. Be2
{[%clk 0:02:55.4]} 11... Nh7 {[%clk 0:02:51.6]} 12. Bh6 {[%clk 0:02:54.4]} 12...
Ne5 {[%clk 0:02:49.1]} 13. Bxg7 {[%clk 0:02:51.9]} 13... Kxg7 {[%clk 0:02:48.5]}
14. f4 {[%clk 0:02:49.5]} 14... Ng4 {[%clk 0:02:45.3]} 15. Bxg4 {[%clk
0:02:40.5]} 15... Bxg4 {[%clk 0:02:43.6]} 16. h3 {[%clk 0:02:40.5]} 16... Bd7
{[%clk 0:02:43.9]} 17. O-O {[%clk 0:02:39]} 17... e5 {[%clk 0:02:35.1]} 18. dxe6
{[%clk 0:02:13.2]} 18... Bxe6 {[%clk 0:02:34.4]} 19. b3 {[%clk 0:02:12]} 19...
Qh4 {[%clk 0:02:34.1]} 20. Rf3 {[%clk 0:02:04.2]} 20... Rbd8 {[%clk 0:02:31]}
21. Raf1 {[%clk 0:01:55.2]} 21... f5 {[%clk 0:02:27.7]} 22. Re1 {[%clk
0:01:46.3]} 22... Qf6 {[%clk 0:02:13.9]} 23. exf5 {[%clk 0:01:40.6]} 23... Bxf5
{[%clk 0:02:13.4]} 24. Nd5 {[%clk 0:01:28.2]} 24... Qd4+ {[%clk 0:02:13.3]} 25.
Qxd4+ {[%clk 0:01:27.5]} 25... cxd4 {[%clk 0:02:14.2]} 26. Rd1 {[%clk
0:01:19.4]} 26... Rde8 {[%clk 0:02:06.4]} 27. Rxd4 {[%clk 0:01:15.8]} 27... Re1+
{[%clk 0:02:06.4]} 28. Kh2 {[%clk 0:01:14.7]} 28... Bb1 {[%clk 0:01:57]} 29. Nc3
{[%clk 0:00:57.3]} 29... h4 {[%clk 0:01:52.2]} 30. Nge4 {[%clk 0:00:53.7]} 30...
Bxe4 {[%clk 0:01:37.8]} 31. Rxe4 {[%clk 0:00:54.6]} 31... Rc1 {[%clk 0:01:20.8]}
32. Re7+ {[%clk 0:00:46.7]} 32... Rf7 {[%clk 0:01:19.5]} 33. Rxf7+ {[%clk
0:00:46.6]} 33... Kxf7 {[%clk 0:01:17]} 34. Ne4 {[%clk 0:00:47.5]} 34... Ke6
{[%clk 0:01:14.3]} 35. Rd3 {[%clk 0:00:47.6]} 35... Kf5 {[%clk 0:01:11.8]} 36.
Nxd6+ {[%clk 0:00:46.5]} 36... Kxf4 {[%clk 0:01:11.9]} 37. Nxb7 {[%clk
0:00:37.9]} 37... Ng5 {[%clk 0:01:12.3]} 38. Nc5 {[%clk 0:00:33.7]} 38... Rc2
{[%clk 0:01:06.3]} 39. a4 {[%clk 0:00:31.6]} 39... Ke5 {[%clk 0:01:01.2]} 40.
Rd5+ {[%clk 0:00:27]} 40... Kf6 {[%clk 0:01:00.4]} 41. Nd7+ {[%clk 0:00:25.1]}
41... Ke6 {[%clk 0:00:58.7]} 42. Rxg5 {[%clk 0:00:24.1]} 42... Kxd7 {[%clk
0:00:59.6]} 43. Rxg6 {[%clk 0:00:24.6]} 43... Rb2 {[%clk 0:00:59.8]} 44. Rxa6
{[%clk 0:00:23.3]} 44... Rxb3 {[%clk 0:01:00.4]} 45. Rh6 {[%clk 0:00:23.9]}
45... Rb4 {[%clk 0:01:00.9]} 46. Rxh4 {[%clk 0:00:24]} 46... Rxa4 {[%clk
0:01:01.5]} 47. Rg4 {[%clk 0:00:24]} 47... Ke6 {[%clk 0:01:02]} 48. h4 {[%clk
0:00:22.9]} 48... Kf5 {[%clk 0:01:02.6]} 49. Kh3 {[%clk 0:00:23.4]} 49... Ra3+
{[%clk 0:01:02.8]} 50. g3 {[%clk 0:00:23.2]} 50... Ra1 {[%clk 0:01:03.3]} 51.
Rf4+ {[%clk 0:00:23.8]} 51... Kg6 {[%clk 0:01:02.6]} 52. Kg4 {[%clk 0:00:24]}
52... Rg1 {[%clk 0:01:02.8]} 53. h5+ {[%clk 0:00:23.8]} 53... Kh6 {[%clk
0:01:02.8]} 54. Rf6+ {[%clk 0:00:23.8]} 54... Kg7 {[%clk 0:01:03.7]} 55. Rg6+
{[%clk 0:00:23.9]} 55... Kh7 {[%clk 0:01:04.1]} 56. c5 {[%clk 0:00:24.4]} 56...
Rc1 {[%clk 0:01:04.6]} 57. c6 {[%clk 0:00:24.9]} 57... Rc4+ {[%clk 0:01:05.1]}
58. Kh3 {[%clk 0:00:25.4]} 58... Rc5 {[%clk 0:01:05.9]} 59. g4 {[%clk
0:00:24.5]} 59... Rc1 {[%clk 0:01:06.7]} 60. Kh4 {[%clk 0:00:24.9]} 60... Rc5
{[%clk 0:01:06]} 61. Rd6 {[%clk 0:00:24.4]} 61... Kg7 {[%clk 0:01:05.8]} 62.
Rd7+ {[%clk 0:00:24]} 62... Kf6 {[%clk 0:01:06.4]} 63. c7 {[%clk 0:00:23.3]}
63... Rc1 {[%clk 0:01:04.8]} 64. g5+ {[%clk 0:00:20.7]} 64... Kf5 {[%clk
0:01:05.3]} 65. Rf7+ {[%clk 0:00:20.1]} 65... Ke4 {[%clk 0:01:04.9]} 66. g6
{[%clk 0:00:21]} 66... Rh1+ {[%clk 0:01:04.2]} 67. Kg5 {[%clk 0:00:21.3]} 67...
Rg1+ {[%clk 0:01:04.8]} 68. Kf6 {[%clk 0:00:21.3]} 68... Rc1 {[%clk 0:01:05.7]}
69. g7 {[%clk 0:00:20.9]} 69... Rf1+ {[%clk 0:01:06.6]} 70. Ke7 {[%clk
0:00:21.1]} 70... Rc1 {[%clk 0:01:07.5]} 71. g8=Q {[%clk 0:00:20.5]} 71... Rxc7+
{[%clk 0:01:08.4]} 72. Kd6 {[%clk 0:00:21]} 72... Rc4 {[%clk 0:01:09.3]} 73.
Re7+ {[%clk 0:00:20.8]} 73... Kd3 {[%clk 0:01:10.2]} 74. Qxc4+ {[%clk
0:00:20.7]} 74... Kxc4 {[%clk 0:01:10.4]} 75. h6 {[%clk 0:00:21.6]} 1-0

[Event "*** Titled Tuesday Blitz"]
[Site "Chess.com"]
[Date "2020.04.14"]
[Round "9"]
[White "hakki1"]
[Black "Klavdia_Nik"]
[Result "1-0"]
[WhiteElo "2394"]
[BlackElo "2165"]
[TimeControl "180+1"]
[EndTime "11:43:20 PDT"]
[Termination "hakki1 won on time"]

1. d4 {[%clk 0:02:59.4]} 1... Nf6 {[%clk 0:02:58.3]} 2. c4 {[%clk 0:02:59.4]}
2... c5 {[%clk 0:02:54.9]} 3. d5 {[%clk 0:02:58.8]} 3... b5 {[%clk 0:02:52.2]}
4. cxb5 {[%clk 0:02:58.1]} 4... a6 {[%clk 0:02:51.4]} 5. e3 {[%clk 0:02:58.3]}
5... axb5 {[%clk 0:02:49]} 6. Bxb5 {[%clk 0:02:57.1]} 6... Qa5+ {[%clk
0:02:49.6]} 7. Nc3 {[%clk 0:02:55.8]} 7... g6 {[%clk 0:02:47.3]} 8. Nf3 {[%clk
0:02:54.2]} 8... Ba6 {[%clk 0:02:45]} 9. Bxa6 {[%clk 0:02:47.3]} 9... Nxa6
{[%clk 0:02:40.7]} 10. O-O {[%clk 0:02:46.5]} 10... d6 {[%clk 0:02:41.3]} 11. e4
{[%clk 0:02:35.2]} 11... Nd7 {[%clk 0:02:35.8]} 12. Qe2 {[%clk 0:02:06.7]} 12...
Bg7 {[%clk 0:02:30.4]} 13. Bg5 {[%clk 0:02:04.3]} 13... h6 {[%clk 0:02:21.3]}
14. Bh4 {[%clk 0:02:03.9]} 14... Bxc3 {[%clk 0:01:57]} 15. bxc3 {[%clk
0:02:03.2]} 15... Qxc3 {[%clk 0:01:57.5]} 16. a3 {[%clk 0:01:50.8]} 16... Nc7
{[%clk 0:01:42]} 17. Rfc1 {[%clk 0:01:45.9]} 17... Qa5 {[%clk 0:01:31.6]} 18. e5
{[%clk 0:01:41.3]} 18... g5 {[%clk 0:01:23.2]} 19. exd6 {[%clk 0:01:38.5]} 19...
Nxd5 {[%clk 0:01:19.6]} 20. Bg3 {[%clk 0:01:23.7]} 20... e6 {[%clk 0:01:13.9]}
21. Ne5 {[%clk 0:01:15.4]} 21... N7f6 {[%clk 0:00:56.8]} 22. d7+ {[%clk
0:00:54.4]} 22... Nxd7 {[%clk 0:00:44.2]} 23. Nc4 {[%clk 0:00:53.1]} 23... Qa6
{[%clk 0:00:31]} 24. Qb2 {[%clk 0:00:52.2]} 24... O-O {[%clk 0:00:27.5]} 25. h4
{[%clk 0:00:50.7]} 25... Rab8 {[%clk 0:00:21.2]} 26. Qe2 {[%clk 0:00:48.9]}
26... N7f6 {[%clk 0:00:14.5]} 27. hxg5 {[%clk 0:00:48.1]} 27... hxg5 {[%clk
0:00:12.7]} 28. Qd2 {[%clk 0:00:44.1]} 28... Ne4 {[%clk 0:00:12.8]} 29. Qd3
{[%clk 0:00:39.8]} 29... Nxg3 {[%clk 0:00:12.6]} 30. Qxg3 {[%clk 0:00:39.3]}
30... f6 {[%clk 0:00:13]} 31. Qf3 {[%clk 0:00:36.4]} 31... Kg7 {[%clk
0:00:13.1]} 32. Qe4 {[%clk 0:00:34.1]} 32... Rbe8 {[%clk 0:00:09.1]} 33. Ne3
{[%clk 0:00:33]} 33... Nf4 {[%clk 0:00:07.7]} 34. g3 {[%clk 0:00:27]} 34... Ne2+
{[%clk 0:00:06.8]} 35. Kg2 {[%clk 0:00:27.2]} 35... Nxc1 {[%clk 0:00:07.4]} 36.
Rxc1 {[%clk 0:00:27.3]} 36... Qa8 {[%clk 0:00:07.6]} 37. Kf3 {[%clk 0:00:24.1]}
37... Qxe4+ {[%clk 0:00:06.8]} 38. Kxe4 {[%clk 0:00:24.4]} 38... Kg6 {[%clk
0:00:06.7]} 39. Rxc5 {[%clk 0:00:24]} 39... Ra8 {[%clk 0:00:06.9]} 40. Rc6
{[%clk 0:00:22.1]} 40... Rxa3 {[%clk 0:00:06.8]} 41. Rxe6 {[%clk 0:00:21.1]}
41... Ra2 {[%clk 0:00:05.5]} 42. Kf3 {[%clk 0:00:20.5]} 42... Kf7 {[%clk
0:00:03.5]} 43. Rc6 {[%clk 0:00:20.2]} 43... Re8 {[%clk 0:00:03.7]} 44. Nd5
{[%clk 0:00:18.5]} 44... Re6 {[%clk 0:00:03.2]} 45. Rc7+ {[%clk 0:00:18.7]}
45... Kg6 {[%clk 0:00:03.4]} 46. Ne7+ {[%clk 0:00:17]} 46... Kf7 {[%clk
0:00:02.8]} 47. Nf5+ {[%clk 0:00:15.8]} 47... Ke8 {[%clk 0:00:02.8]} 48. Ng7+
{[%clk 0:00:15.5]} 1-0

[Event "*** Titled Tuesday Blitz"]
[Site "Chess.com"]
[Date "2020.04.14"]
[Round "9"]
[White "realmadridtv"]
[Black "amiralfio"]
[Result "0-1"]
[WhiteElo "2347"]
[BlackElo "2535"]
[TimeControl "180+1"]
[EndTime "11:43:22 PDT"]
[Termination "amiralfio won by resignation"]

1. e4 {[%clk 0:03:00.9]} 1... e6 {[%clk 0:02:56.9]} 2. d4 {[%clk 0:03:00.6]}
2... d5 {[%clk 0:02:50.8]} 3. Nc3 {[%clk 0:03:01]} 3... Nf6 {[%clk 0:02:46.5]}
4. Bg5 {[%clk 0:02:59.4]} 4... dxe4 {[%clk 0:02:43.4]} 5. Nxe4 {[%clk
0:02:59.3]} 5... Be7 {[%clk 0:02:43.5]} 6. Nxf6+ {[%clk 0:02:57]} 6... Bxf6
{[%clk 0:02:42.9]} 7. Bxf6 {[%clk 0:02:55.6]} 7... Qxf6 {[%clk 0:02:43.8]} 8.
Nf3 {[%clk 0:02:55.9]} 8... O-O {[%clk 0:02:41]} 9. Bd3 {[%clk 0:02:55.2]} 9...
c5 {[%clk 0:02:38.2]} 10. Qe2 {[%clk 0:02:54.4]} 10... cxd4 {[%clk 0:02:34.3]}
11. O-O-O {[%clk 0:02:54.4]} 11... Nc6 {[%clk 0:02:33.7]} 12. a3 {[%clk
0:02:54.5]} 12... e5 {[%clk 0:02:32.1]} 13. Qe4 {[%clk 0:02:45.7]} 13... g6
{[%clk 0:02:31.5]} 14. g4 {[%clk 0:02:37]} 14... Be6 {[%clk 0:02:14.3]} 15. h3
{[%clk 0:02:33.7]} 15... Rfe8 {[%clk 0:02:07.9]} 16. Rhe1 {[%clk 0:02:31.5]}
16... Bd7 {[%clk 0:01:34]} 17. Bc4 {[%clk 0:02:30.3]} 17... Rad8 {[%clk
0:01:30.2]} 18. Kb1 {[%clk 0:02:22.4]} 18... Kg7 {[%clk 0:01:30.1]} 19. h4
{[%clk 0:02:16.1]} 19... h6 {[%clk 0:01:22.6]} 20. g5 {[%clk 0:01:55]} 20... Qf5
{[%clk 0:00:58.7]} 21. gxh6+ {[%clk 0:01:54.7]} 21... Kxh6 {[%clk 0:00:59.2]}
22. Ng5 {[%clk 0:01:40.7]} 22... Qxe4 {[%clk 0:00:48]} 23. Nxf7+ {[%clk
0:01:39.1]} 23... Kg7 {[%clk 0:00:47.3]} 24. Rxe4 {[%clk 0:01:38.9]} 24... Bf5
{[%clk 0:00:46.2]} 25. Nxd8 {[%clk 0:01:23]} 25... Bxe4 {[%clk 0:00:44.3]} 26.
Ne6+ {[%clk 0:01:22.3]} 26... Kf6 {[%clk 0:00:43.8]} 27. Ng5 {[%clk 0:01:20.5]}
27... Bf5 {[%clk 0:00:42.9]} 28. b4 {[%clk 0:01:13]} 28... Rh8 {[%clk
0:00:42.4]} 29. b5 {[%clk 0:01:12.4]} 29... Na5 {[%clk 0:00:39.4]} 30. Bd5
{[%clk 0:01:07.5]} 30... Rxh4 {[%clk 0:00:38.8]} 31. f3 {[%clk 0:01:07.4]} 31...
Kxg5 {[%clk 0:00:38.2]} 32. Re1 {[%clk 0:01:00.4]} 32... Kf6 {[%clk 0:00:36.1]}
33. Kb2 {[%clk 0:00:58.4]} 33... Rh2 {[%clk 0:00:34.9]} 34. a4 {[%clk
0:00:58.7]} 34... Rxc2+ {[%clk 0:00:34.2]} 35. Ka3 {[%clk 0:00:59.4]} 35... Nc4+
{[%clk 0:00:33]} 36. Bxc4 {[%clk 0:00:56.9]} 36... Rxc4 {[%clk 0:00:33.9]} 37.
Kb3 {[%clk 0:00:57.3]} 37... Rc3+ {[%clk 0:00:34]} 38. Kb4 {[%clk 0:00:57.9]}
38... Rxf3 {[%clk 0:00:34.5]} 39. a5 {[%clk 0:00:54.1]} 39... d3 {[%clk
0:00:34.1]} 40. b6 {[%clk 0:00:51.1]} 40... axb6 {[%clk 0:00:33.8]} 41. axb6
{[%clk 0:00:51.3]} 41... e4 {[%clk 0:00:32.3]} 42. Kc3 {[%clk 0:00:49.3]} 42...
Rf2 {[%clk 0:00:30]} 43. Kd4 {[%clk 0:00:46]} 43... d2 {[%clk 0:00:26.3]} 44.
Rg1 {[%clk 0:00:46.6]} 44... Re2 {[%clk 0:00:22.8]} 45. Rd1 {[%clk 0:00:43.5]}
45... e3 {[%clk 0:00:22.7]} 46. Kd5 {[%clk 0:00:36.7]} 46... Bc2 {[%clk
0:00:11.4]} 47. Rf1+ {[%clk 0:00:35.8]} 47... Rf2 {[%clk 0:00:11.4]} 48. Rg1
{[%clk 0:00:34.4]} 48... e2 {[%clk 0:00:10.4]} 49. Kd6 {[%clk 0:00:32.8]} 49...
d1=R+ {[%clk 0:00:09.3]} 50. Rxd1 {[%clk 0:00:32.9]} 50... exd1=R+ {[%clk
0:00:08.5]} 51. Kc5 {[%clk 0:00:31.9]} 51... Rb1 {[%clk 0:00:08.3]} 52. Kd4
{[%clk 0:00:31.6]} 52... g5 {[%clk 0:00:08.6]} 53. Ke3 {[%clk 0:00:31.3]} 53...
Rf4 {[%clk 0:00:09]} 54. Ke2 {[%clk 0:00:31.1]} 54... Bf5 {[%clk 0:00:09.6]} 55.
Ke3 {[%clk 0:00:31.6]} 55... Rb3+ {[%clk 0:00:09.4]} 56. Ke2 {[%clk 0:00:31.3]}
56... Ra4 {[%clk 0:00:09.8]} 57. Kd2 {[%clk 0:00:31.4]} 57... Ra2+ {[%clk
0:00:09.1]} 0-1

[Event "*** Titled Tuesday Blitz"]
[Site "Chess.com"]
[Date "2020.04.14"]
[Round "9"]
[White "Larina_Marija"]
[Black "Riptide27"]
[Result "1-0"]
[WhiteElo "2354"]
[BlackElo "2458"]
[TimeControl "180+1"]
[EndTime "11:43:23 PDT"]
[Termination "Larina_Marija won on time"]

1. e4 {[%clk 0:03:00]} 1... c5 {[%clk 0:02:59.9]} 2. Nc3 {[%clk 0:02:59]} 2...
e6 {[%clk 0:02:59.8]} 3. g3 {[%clk 0:02:58.3]} 3... Nc6 {[%clk 0:02:59.4]} 4.
Bg2 {[%clk 0:02:58.3]} 4... Nf6 {[%clk 0:02:59.8]} 5. Nge2 {[%clk 0:02:56.4]}
5... Be7 {[%clk 0:02:59.7]} 6. d4 {[%clk 0:02:56]} 6... cxd4 {[%clk 0:02:56.9]}
7. Nxd4 {[%clk 0:02:56.2]} 7... Qc7 {[%clk 0:02:50.8]} 8. O-O {[%clk 0:02:54]}
8... a6 {[%clk 0:02:49.6]} 9. Re1 {[%clk 0:02:38.8]} 9... d6 {[%clk 0:02:40.2]}
10. Nxc6 {[%clk 0:02:35.7]} 10... bxc6 {[%clk 0:02:39.2]} 11. e5 {[%clk
0:02:35.5]} 11... dxe5 {[%clk 0:02:37.9]} 12. Rxe5 {[%clk 0:02:35]} 12... O-O
{[%clk 0:02:33.5]} 13. Re1 {[%clk 0:02:15.8]} 13... Bb7 {[%clk 0:02:30.3]} 14.
Bf4 {[%clk 0:02:14.3]} 14... Qa5 {[%clk 0:02:25.2]} 15. Be5 {[%clk 0:02:09]}
15... Rfd8 {[%clk 0:02:12.1]} 16. Qe2 {[%clk 0:02:07.5]} 16... Nd5 {[%clk
0:02:06.2]} 17. Ne4 {[%clk 0:02:05.2]} 17... f6 {[%clk 0:02:05.6]} 18. Bd4
{[%clk 0:01:46.6]} 18... Nf4 {[%clk 0:01:49.1]} 19. gxf4 {[%clk 0:01:46.1]}
19... Rxd4 {[%clk 0:01:48.8]} 20. c3 {[%clk 0:01:44.5]} 20... Rdd8 {[%clk
0:01:44.3]} 21. Ng3 {[%clk 0:01:40]} 21... Rd6 {[%clk 0:01:37.6]} 22. Bh3 {[%clk
0:01:37.5]} 22... f5 {[%clk 0:01:06.6]} 23. Rad1 {[%clk 0:01:27.3]} 23... Rad8
{[%clk 0:00:36.9]} 24. Rxd6 {[%clk 0:01:07.8]} 24... Rxd6 {[%clk 0:00:37.8]} 25.
Nxf5 {[%clk 0:01:03.2]} 25... exf5 {[%clk 0:00:31.3]} 26. Qxe7 {[%clk
0:01:01.8]} 26... Rg6+ {[%clk 0:00:31]} 27. Kf1 {[%clk 0:00:41.7]} 27... Qb5+
{[%clk 0:00:30.7]} 28. Re2 {[%clk 0:00:41.3]} 28... h6 {[%clk 0:00:24]} 29. Qd8+
{[%clk 0:00:23.1]} 29... Kh7 {[%clk 0:00:23.2]} 30. c4 {[%clk 0:00:22]} 30...
Qc5 {[%clk 0:00:14.3]} 31. Qd3 {[%clk 0:00:13.1]} 31... Rf6 {[%clk 0:00:12.5]}
32. Re5 {[%clk 0:00:13.4]} 32... Qb4 {[%clk 0:00:11.5]} 33. Bxf5+ {[%clk
0:00:13.8]} 33... g6 {[%clk 0:00:11.4]} 34. Qd7+ {[%clk 0:00:12.8]} 34... Kg8
{[%clk 0:00:10.3]} 35. Re8+ {[%clk 0:00:12.8]} 35... Rf8 {[%clk 0:00:10.5]} 36.
Be6+ {[%clk 0:00:12.4]} 36... Kh8 {[%clk 0:00:10.8]} 37. Qd4+ {[%clk 0:00:12.2]}
37... Kh7 {[%clk 0:00:07.7]} 38. Qd7+ {[%clk 0:00:11.6]} 38... Kh8 {[%clk
0:00:07.7]} 39. Qf7 {[%clk 0:00:05.5]} 1-0

[Event "*** Titled Tuesday Blitz"]
[Site "Chess.com"]
[Date "2020.04.14"]
[Round "9"]
[White "DIM90"]
[Black "White_Ghost"]
[Result "0-1"]
[WhiteElo "2231"]
[BlackElo "2454"]
[TimeControl "180+1"]
[EndTime "11:43:24 PDT"]
[Termination "White_Ghost won by resignation"]

1. e4 {[%clk 0:02:58.5]} 1... e5 {[%clk 0:02:59.4]} 2. Nf3 {[%clk 0:02:58]} 2...
Nc6 {[%clk 0:02:59.3]} 3. Bb5 {[%clk 0:02:58.4]} 3... a6 {[%clk 0:02:59.4]} 4.
Bxc6 {[%clk 0:02:58.9]} 4... dxc6 {[%clk 0:03:00.3]} 5. O-O {[%clk 0:02:58.7]}
5... Bg4 {[%clk 0:02:59.1]} 6. h3 {[%clk 0:02:58.3]} 6... Bh5 {[%clk 0:02:59.4]}
7. d3 {[%clk 0:02:56.1]} 7... Bd6 {[%clk 0:02:56.9]} 8. Be3 {[%clk 0:02:55.7]}
8... Ne7 {[%clk 0:02:54.3]} 9. Nbd2 {[%clk 0:02:55.5]} 9... O-O {[%clk
0:02:54.1]} 10. c3 {[%clk 0:02:52.2]} 10... Qd7 {[%clk 0:02:52.7]} 11. d4 {[%clk
0:02:51.9]} 11... exd4 {[%clk 0:02:41.4]} 12. cxd4 {[%clk 0:02:51.6]} 12... Kh8
{[%clk 0:02:35.4]} 13. e5 {[%clk 0:02:50.4]} 13... Bb4 {[%clk 0:02:34.8]} 14. a3
{[%clk 0:02:49.3]} 14... Bxd2 {[%clk 0:02:34]} 15. Bxd2 {[%clk 0:02:44.1]} 15...
Bxf3 {[%clk 0:02:32.5]} 16. Qxf3 {[%clk 0:02:43.6]} 16... Qxd4 {[%clk
0:02:31.8]} 17. Bc3 {[%clk 0:02:43.1]} 17... Qd5 {[%clk 0:02:30.4]} 18. Qg3
{[%clk 0:02:42.4]} 18... Ng6 {[%clk 0:02:28.1]} 19. Rae1 {[%clk 0:02:39.2]}
19... Rad8 {[%clk 0:02:25]} 20. f4 {[%clk 0:02:38.9]} 20... Qd3 {[%clk
0:02:23.7]} 21. Rf3 {[%clk 0:02:36]} 21... Qf5 {[%clk 0:02:23]} 22. Qf2 {[%clk
0:02:33.3]} 22... h5 {[%clk 0:02:21.2]} 23. g4 {[%clk 0:02:18.2]} 23... hxg4
{[%clk 0:02:20.8]} 24. hxg4 {[%clk 0:02:18.1]} 24... Qxg4+ {[%clk 0:02:21.1]}
25. Rg3 {[%clk 0:02:16.5]} 25... Qxf4 {[%clk 0:02:15.9]} 26. Qh2+ {[%clk
0:02:09.5]} 26... Kg8 {[%clk 0:02:14.9]} 27. e6 {[%clk 0:02:01.8]} 27... Rd6
{[%clk 0:01:48.6]} 28. exf7+ {[%clk 0:01:56.7]} 28... Qxf7 {[%clk 0:01:42.4]}
29. Qg2 {[%clk 0:01:32.9]} 29... b6 {[%clk 0:01:27.4]} 30. Re4 {[%clk
0:01:25.6]} 30... Rd1+ {[%clk 0:01:10.8]} 31. Kh2 {[%clk 0:01:24.6]} 31... Qf5
{[%clk 0:00:55.4]} 32. Reg4 {[%clk 0:01:12.7]} 32... Qh5+ {[%clk 0:00:24.9]} 33.
Rh3 {[%clk 0:01:12.3]} 33... Qxg4 {[%clk 0:00:25.2]} 34. Qxg4 {[%clk 0:01:11.4]}
34... Rf2+ {[%clk 0:00:25.3]} 35. Kg3 {[%clk 0:01:09.5]} 35... Rg1+ {[%clk
0:00:25.5]} 36. Kxf2 {[%clk 0:01:09.8]} 36... Rxg4 {[%clk 0:00:26.4]} 37. Rd3
{[%clk 0:01:09.8]} 37... Rf4+ {[%clk 0:00:25]} 38. Kg3 {[%clk 0:01:09.4]} 38...
Rf7 {[%clk 0:00:25.8]} 39. Rd8+ {[%clk 0:01:09]} 39... Kh7 {[%clk 0:00:25.4]}
40. Kg4 {[%clk 0:01:07]} 40... c5 {[%clk 0:00:22.8]} 41. Kg5 {[%clk 0:01:05.5]}
41... Ne7 {[%clk 0:00:21]} 42. Rd1 {[%clk 0:01:01.9]} 42... Rf5+ {[%clk
0:00:19.7]} 43. Kg4 {[%clk 0:01:02]} 43... Rf7 {[%clk 0:00:19.5]} 44. Rh1+
{[%clk 0:01:01.4]} 44... Kg8 {[%clk 0:00:19.9]} 45. Rd1 {[%clk 0:01:02.1]} 45...
Nc6 {[%clk 0:00:20]} 46. Re1 {[%clk 0:00:55.2]} 46... Nd4 {[%clk 0:00:19.4]} 47.
Re8+ {[%clk 0:00:54.3]} 47... Kh7 {[%clk 0:00:19.5]} 48. Re4 {[%clk 0:00:52.9]}
48... Rd7 {[%clk 0:00:17.5]} 49. Re1 {[%clk 0:00:50]} 49... Kg6 {[%clk
0:00:17.7]} 50. Rg1 {[%clk 0:00:49.4]} 50... Kf7 {[%clk 0:00:17.3]} 51. Kf4
{[%clk 0:00:48.9]} 51... Kg8 {[%clk 0:00:17.8]} 52. Ke3 {[%clk 0:00:47.5]} 52...
Nf5+ {[%clk 0:00:17.4]} 53. Ke4 {[%clk 0:00:47.1]} 53... Nd6+ {[%clk 0:00:17.1]}
54. Kd5 {[%clk 0:00:46.5]} 54... Nb5+ {[%clk 0:00:16]} 55. Kc6 {[%clk
0:00:45.5]} 55... Rd6+ {[%clk 0:00:16.5]} 56. Kb7 {[%clk 0:00:44.2]} 56... Nxc3
{[%clk 0:00:16.9]} 57. bxc3 {[%clk 0:00:44.6]} 57... Rd7 {[%clk 0:00:16.6]} 58.
Kc6 {[%clk 0:00:44.1]} 58... Rf7 {[%clk 0:00:16]} 59. c4 {[%clk 0:00:43.1]}
59... Kh7 {[%clk 0:00:15.8]} 60. a4 {[%clk 0:00:42.4]} 60... g6 {[%clk
0:00:15.3]} 61. Rh1+ {[%clk 0:00:42.8]} 61... Kg7 {[%clk 0:00:15.3]} 62. Rd1
{[%clk 0:00:43.7]} 62... g5 {[%clk 0:00:14.9]} 63. Rd5 {[%clk 0:00:42.7]} 63...
Kg6 {[%clk 0:00:14.9]} 64. Rd8 {[%clk 0:00:42.4]} 64... g4 {[%clk 0:00:14.8]}
65. Rd1 {[%clk 0:00:42.2]} 65... Kg5 {[%clk 0:00:14.9]} 66. a5 {[%clk
0:00:42.9]} 66... bxa5 {[%clk 0:00:12.6]} 67. Kxc5 {[%clk 0:00:43.2]} 67... g3
{[%clk 0:00:13]} 68. Rd7 {[%clk 0:00:41.2]} 68... Rxd7 {[%clk 0:00:12.2]} 0-1